Workbook

Sheet 시작
B1: 이 템플릿 정보
B2: 이 이벤트 예산 워크북을 이용해 이벤트와 관련해 발생한수입과 비용을 기록합니다.
B3: 이벤트 이름을 입력하고 비용 워크시트와 수입 워크시트에서 표에 세부 내용을 입력합니다.
B4: 비용 합계과 총 수입이 자동 계산됩니다.
B5: 손익 요약 워크시트에 손익 계산서 요약 차트를 업데이트됩니다.
B6: 참고:
B7: 추가적인 지침은 각 워크시트의 A열에 있으며, 이 텍스트는 일부러 숨겨 놓았습니다. 텍스트를 제거하려면 A열을 선택한 다음 [삭제]를 선택합니다.
B8: 표에 대해 자세히 알려면 표 안에서 SHIFT 키를 누른 채 F10 키를 누르고 [표] 옵션을 선택한 다음, [대체 텍스트]를 선택합니다.

Sheet 지출
A1: 이 워크시트의 각 테이블에 범주별 예상 비용 및 실제 비용을 입력하고, D1 셀에 이벤트 이름을 입력하여 이 워크시트와 기타 워크시트의 제목을 사용자 지정합니다. H1 셀에는 이 워크시트의 부제가 표시됩니다. 이 워크시트의 사용 방법에 대한 유용한 지침은 이 열의 셀에 있습니다. 다음 지침은 A3 셀에 있습니다. | B1: 이벤트 예산 | D1: 이벤트 이름 | H1: 지출
A3: 총 비용 레이블은 오른쪽 셀에 있고 예상 비용 레이블은 G3 셀, 실제 비용 레이블은 H3 셀에 나타납니다. | B3: 비용 합계 | G3: 예상 | H3: 실제
A4: G4 셀의 총 예상 경비와 H4 셀의 총 실제 비용은 자동으로 계산됩니다. 다음 지침은 A6 셀에 있습니다. | G4: =SUM(C11,C19,C25,C32,G11,G19,G24) -> ₩882.00 | H4: =SUM(D11,D19,D25,D32,H11,H19,H24) -> ₩302.00
A6: 오른쪽 셀에서 시작되는 표에 현장 비용를 입력하고 F6 셀에서 시작되는 다과 비용을 입력합니다. 다음 지침은 A13 셀에 있습니다. | B6: 사이트 | C6: 예상 | D6: 실제 | F6: 다과 | G6: 예상 | H6: 실제
B7: 장소 임대비 | C7: ₩500.00 | F7: 식비
B8: 사이트 담당자 | F8: 음료 | G8: ₩20.00
B9: 장비 | F9: 리넨 | H9: ₩20.00
B10: 테이블 및 의자 | F10: 스텝 및 사례금
B11: 요약 | C11: =SUBTOTAL(109,SiteExpenses[예상]) -> ₩500.00 | D11: =SUBTOTAL(103,SiteExpenses[실제]) -> ₩0.00 | F11: 요약 | G11: =SUBTOTAL(109,RefreshmentsExpenses[예상]) -> ₩20.00 | H11: =SUBTOTAL(103,RefreshmentsExpenses[실제]) -> ₩1.00
A13: 오른쪽 셀에서 시작되는 표에 장식 비용를 입력하고 F13 셀에서 시작되는 표에 프로그램 비용을 입력합니다. 다음 지침은 A21 셀에 있습니다. | B13: 장식 | C13: 예상 | D13: 실제 | F13: 프로그램 | G13: 예상 | H13: 실제
B14: 꽃 | C14: ₩200.00 | D14: ₩300.00 | F14: 공연자
B15: 촛불 | F15: 스피커 | G15: ₩30.00
B16: 조명 | F16: 교통비
B17: 풍선 | F17: 호텔
B18: 종이 용품 | F18: 기타
B19: 요약 | C19: =SUBTOTAL(109,DecorationsExpenses[예상]) -> ₩200.00 | D19: =SUBTOTAL(109,DecorationsExpenses[실제]) -> ₩300.00 | F19: 요약 | G19: =SUBTOTAL(109,ProgramExpenses[예상]) -> ₩30.00 | H19: =SUBTOTAL(103,ProgramExpenses[실제]) -> ₩0.00
A21: 오른쪽 셀에서 시작되는 표에 총 홍보 비용을 입력하고 F21 셀에서 시작되는 표에 상품 비용을 입력합니다. 다음 지침은 A27 셀에 있습니다. | B21: 홍보 | C21: 예상 | D21: 실제 | F21: 상품 | G21: 예상 | H21: 실제
B22: 그래픽 작업 | F22: 리본/감사패/트로피
B23: 복사/인쇄 | C23: ₩20.00 | F23: 선물 | G23: ₩100.00
B24: 우편 | F24: 요약 | G24: =SUBTOTAL(109,PrizesExpenses[예상]) -> ₩100.00 | H24: =SUBTOTAL(103,PrizesExpenses[실제]) -> ₩0.00
B25: 요약 | C25: =SUBTOTAL(109,PublicityExpenses[예상]) -> ₩20.00 | D25: =SUBTOTAL(103,PublicityExpenses[실제]) -> ₩0.00
A27: 오른쪽 셀에서 시작되는 표에 기타 비용을 입력합니다. | B27: 기타 | C27: 예상 | D27: 실제
B28: 전화 번호 | D28: ₩13.00
B29: 교통비 | C29: ₩12.00
B30: 사무용품
B31: 팩스 서비스
B32: 요약 | C32: =SUBTOTAL(109,MiscellaneousExpenses[예상]) -> ₩12.00 | D32: =SUBTOTAL(103,MiscellaneousExpenses[실제]) -> ₩1.00

Sheet 수입
A1: 이 워크시트의 각 표에 범주별 예상 수입과 실제 수입을 입력합니다. 오른쪽 셀에 이 워크시트의 제목이 자동으로 업데이트됩니다. G1 셀에는 부제목이 표시됩니다. 이 워크시트의 사용 방법에 대한 유용한 지침은 이 열의 셀에 있습니다. 다음 지침은 A3 셀에 있습니다. | B1: =지출!B1 -> 이벤트 예산 | D1: =지출!D1 -> 이벤트 이름 | G1: 수입
A3: 총 수입 레이블은 오른쪽 셀에 있고 예상 수입 레이블은 F3 셀, 실제 수입 레이블은 G3 셀에 나타납니다. | B3: 총 수입 | F3: 예상 | G3: 실제
A4: 총 예상 수입은 F4 셀에 자동으로 계산되고 실제 수입은 G4 셀에 자동 계산됩니다. | F4: =SUM(입장객[[#Totals],[예상 수입]],프로그램_내_광고[[#Totals],[예상 수입]],ExhibitorsAndVendors[[#Totals],[예상 수입]],항목_판매[[#Totals],[예상 수입]]) -> ₩1,936.00 | G4: =SUM(입장객[[#Totals],[실제 수입]],프로그램_내_광고[[#Totals],[실제 수입]],ExhibitorsAndVendors[[#Totals],[실제 수입]],항목_판매[[#Totals],[실제 수입]]) -> ₩1,831.00
A5: 오른쪽 셀에 입장객 레이블이 있습니다. | B5: 입장객
A6: 오른쪽 셀에서 시작되는 표에 티켓 비율과 예상 및 실제 입장객 수를 입력합니다. 입장객을 통한 예상 수입 및 실제 수입은 자동으로 계산 됩니다. 다음 지침은 셀 A11에 있습니다. | B6: 예상 숫자 | C6: 실제 숫자 | D6: 종류 | E6: 가격 | F6: 예상 수입 | G6: 실제 수입
B7: 300 | C7: 278 | D7: 성인 @ | E7: ₩5.00 | F7: =B7*E7 -> ₩1,500.00 | G7: =C7*E7 -> ₩1,390.00
B8: 197 | C8: 195 | D8: 아동 @ | E8: ₩2.00 | F8: =B8*E8 -> ₩394.00 | G8: =C8*E8 -> ₩390.00
B9: 42 | C9: 51 | D9: 기타 @ | E9: ₩1.00 | F9: =B9*E9 -> ₩42.00 | G9: =C9*E9 -> ₩51.00
B10: 요약 | F10: =SUBTOTAL(109,입장객[예상 수입]) -> ₩1,936.00 | G10: =SUBTOTAL(109,입장객[실제 수입]) -> ₩1,831.00
A11: 오른쪽 셀에 프로그램 레이블 광고가 있습니다. | B11: 프로그램 내 광고
A12: 오른쪽 셀에서 시작되는 테이블의 프로그램 광고 및 광고 비율에 대한 예상 숫자와 실제 숫자를 입력합니다. 광고를 통한 예상 수입 및 실제 수입은 자동으로 계산됩니다. 다음 지침은 셀 A17에 있습니다. | B12: 예상 숫자 | C12: 실제 숫자 | D12: 종류 | E12: 가격 | F12: 예상 수입 | G12: 실제 수입
B13: 12 | D13: 표지 @ | F13: =B13*E13 -> ₩0.00 | G13: =C13*E13 -> ₩0.00
C14: 158 | D14: 반 페이지 @ | F14: =B14*E14 -> ₩0.00 | G14: =C14*E14 -> ₩0.00
B15: 4 | D15: 1/4 페이지 @ | F15: =B15*E15 -> ₩0.00 | G15: =C15*E15 -> ₩0.00
B16: 요약 | F16: =SUBTOTAL(109,프로그램_내_광고[예상 수입]) -> ₩0.00 | G16: =SUBTOTAL(109,프로그램_내_광고[실제 수입]) -> ₩0.00
A17: 오른쪽 셀에 전시 또는 공급업체 레이블이 나타납니다. | B17: 전시자/공급업체
A18: 오른쪽 셀에서 시작되는 표에 예상 및 실제 전시자 및 공급업체 수와 부스 비율을 입력합니다. 예상 수입 및 실제 수입은 자동으로 계산됩니다. 다음 지침은 셀 A23에 있습니다. | B18: 예상 숫자 | C18: 실제 숫자 | D18: 종류 | E18: 가격 | F18: 예상 수입 | G18: 실제 수입
B19: 23 | D19: 대형 부스 @ | F19: =B19*E19 -> ₩0.00 | G19: =C19*E19 -> ₩0.00
B20: 354 | D20: 중형 부스 @ | F20: =B20*E20 -> ₩0.00 | G20: =C20*E20 -> ₩0.00
B21: 56 | D21: 소형 부스 @ | F21: =B21*E21 -> ₩0.00 | G21: =C21*E21 -> ₩0.00
B22: 요약 | F22: =SUBTOTAL(109,ExhibitorsAndVendors[예상 수입]) -> ₩0.00 | G22: =SUBTOTAL(109,ExhibitorsAndVendors[실제 수입]) -> ₩0.00
A23: 오른쪽 셀에 항목 판매 레이블이 있습니다. | B23: 항목 판매
A24: 오른쪽 셀에서 시작되는 표에 판매된 항목의 예상 숫자 및 실제 숫자와 항목 비율을 입력합니다. 예상 수입 및 실제 수입은 자동으로 계산됩니다. | B24: 예상 숫자 | C24: 실제 숫자 | D24: 종류 | E24: 가격 | F24: 예상 수입 | G24: 실제 수입
D25: 항목 @ | F25: =B25*E25 -> ₩0.00 | G25: =C25*E25 -> ₩0.00
B26: 123 | D26: 항목 @ | F26: =B26*E26 -> ₩0.00 | G26: =C26*E26 -> ₩0.00
D27: 항목 @ | F27: =B27*E27 -> ₩0.00 | G27: =C27*E27 -> ₩0.00
B28: 13 | D28: 항목 @ | F28: =B28*E28 -> ₩0.00 | G28: =C28*E28 -> ₩0.00
B29: 요약 | F29: =SUBTOTAL(109,항목_판매[예상 수입]) -> ₩0.00 | G29: =SUBTOTAL(109,항목_판매[실제 수입]) -> ₩0.00

Sheet 손익 계산서 요약
A1: 총 수입과 비용을 나타내는 손익 요약 및 차트를 이 워크시트에서 자동으로 업데이트됩니다. 오른쪽 셀에 이 워크시트의 제목이 자동으로 업데이트됩니다. G1 셀과 G2셀에 부제목이 표시됩니다. 이 워크시트의 사용 방법에 대한 유용한 지침은 이 열의 셀에 있습니다. 다음 지침은 A3 셀에 있습니다. | B1: =지출!B1 -> 이벤트 예산 | D1: =지출!D1 -> 이벤트 이름 | G1: 이익
G2: 손실 요약
A3: 예상 수입 및 비용과 실제 수입 및 비용을 비교하는 막대형 차트가 E3 셀에 있습니다. | E3: 예상 수입 및 비용과 실제 수입 및 비용을 비교하는 막대형 차트가 이 셀에 있습니다.
A4: 오른쪽 셀에서 시작되는 요약 표는 자동으로 업데이트됩니다. 다음 지침은 A8 셀에 있습니다. | B4: 합계 | C4: 예상 | D4: 실제
B5: 총 수입 | C5: =수입!F10 -> ₩1,936.00 | D5: =수입!F4 -> ₩1,936.00
B6: 비용 합계 | C6: =지출!G4 -> ₩882.00 | D6: =지출!H4 -> ₩302.00
A8: 예상 총 이익 및 손실은 C8 셀에서 자동으로 계산되고 실제 총 이익 및 손실은 D8에서 자동으로 계산됩니다. | B8: 이익 합계 (또는 손실) | C8: =C5-C6 -> ₩1,054.00 | D8: =D5-D6 -> ₩1,634.00
